bitfinex-derivatives/quotes_ETHF0:USTF0_20241013
["timestamp","ask_amount","ask_price","bid_price","bid_amount"]
[1728851937312,0.40699,2457.4,2457.3,3.52200307]
[1728851937313,3.61479,2457.4,2457.3,3.52200307]
[1728851938317,3.61479,2457.4,2457.3,3.01297817]
[1728851938519,3.61479,2457.4,2457.3,3.52201236]
[1728851938714,3.61479,2457.4,2457.3,4.43559859]
[1728851938914,3.61479,2457.4,2457.3,4.58984884]
[1728851939114,3.61479,2457.4,2457.3,3.52200408]
[1728851939414,3.61479,2457.4,2457.3,5.12431163]
[1728851940025,3.61479,2457.4,2457.3,3.52200415]
[1728851940219,3.61479,2457.4,2457.3,5.12431163]
[1728851941125,3.61479,2457.4,2457.3,4.46102736]
[1728851941418,3.61479,2457.4,2457.3,5.5313295]
[1728851941719,3.61479,2457.4,2457.3,5.1243195]
[1728851942521,3.61479,2457.4,2457.3,5.5313295]
[1728851942710,3.61479,2457.4,2457.3,5.1243195]
[1728851943609,3.61479,2457.4,2457.3,5.12426796]
[1728851944114,3.61479,2457.4,2457.3,3.52196048]
[1728851944322,3.61479,2457.4,2457.3,2.6334286]
[1728851944513,3.61479,2457.4,2457.3,4.08068654]
[1728851944716,3.61479,2457.4,2457.3,4.33371725]
[1728851944915,3.61479,2457.4,2457.3,5.12425096]
[1728851945123,3.61479,2457.4,2457.3,5.63328082]
[1728851945319,3.61479,2457.4,2457.3,5.09862285]
[1728851946312,3.61479,2457.4,2457.3,5.09855923]
[1728851947125,3.61479,2457.4,2457.3,5.09855917]
[1728851947324,3.61479,2457.4,2457.3,4.46227282]
[1728851947727,3.61479,2457.4,2457.3,3.95324296]
[1728851948427,0.40699,2457.4,2457.3,3.79874999]
[1728851948624,0.40699,2457.4,2457.3,3.95298427]
[1728851953227,0.40699,2457.4,2457.3,3.95280689]
[1728851956040,0.40699,2457.4,2457.3,4.35981689]
[1728851956334,3.61478,2457.5,2457.3,4.86883076]
[1728851956530,3.61478,2457.5,2457.4,1.32]
[1728851956531,3.2078,2457.5,2457.4,1.32]
[1728851956832,0.40694,2457.7,2457.4,4.89440297]
[1728851957134,0.40697,2457.6,2457.5,3.21691362]
[1728851957328,0.40697,2457.6,2457.5,2.5351]
[1728851957529,0.40697,2457.6,2457.5,3.60241362]
[1728851960135,0.40697,2457.6,2457.5,2.5351]
[1728851960636,0.79207,2457.6,2457.5,2.5351]
[1728851961536,0.79207,2457.6,2457.5,1.2151]
[1728851964332,0.79207,2457.6,2457.4,2.38731362]
[1728851964333,0.40697,2457.5,2457.4,1.06731362]
[1728851964542,1.72697,2457.5,2457.4,1.06731362]
[1728851964733,1.72697,2457.5,2457.4,1.22153545]
[1728851964926,1.72697,2457.5,2457.4,1.22153562]
[1728851965135,1.72697,2457.5,2457.4,1.06731362]
[1728851965530,1.72697,2457.5,2457.4,1.22153978]
[1728851966534,0.40697,2457.5,2457.4,1.22153978]
[1728851968342,3.61477,2457.5,2457.4,1.22153978]
[1728851970238,3.61477,2457.5,2457.4,2.63278439]
[1728851970438,3.61477,2457.5,2457.4,1.22153978]
[1728851971032,3.61477,2457.5,2457.4,2.54153978]
[1728851971537,0.40697,2457.5,2457.4,2.54153978]
[1728851971740,3.61477,2457.5,2457.4,2.54153978]
[1728851972533,3.61477,2457.5,2457.4,3.95295723]
[1728851974259,0.40697,2457.5,2457.4,3.79873107]
[1728851974542,0.40697,2457.5,2457.4,3.95301285]
[1728851974736,3.61477,2457.5,2457.4,3.79873107]
[1728851974932,3.61477,2457.5,2457.4,3.95301572]
[1728851975340,3.61477,2457.5,2457.4,4.08026982]
[1728851975540,0.40697,2457.5,2457.4,4.08026982]
[1728851975740,3.61477,2457.5,2457.4,4.58928668]
[1728851976944,0.40697,2457.5,2457.4,3.52227178]
[1728851977330,3.61477,2457.5,2457.4,5.12457926]
[1728851978151,0.40697,2457.5,2457.4,4.97029461]
[1728851978337,3.61477,2457.5,2457.4,5.1248195]
[1728851980941,0.40697,2457.5,2457.4,5.1248195]
[1728851981346,3.61477,2457.5,2457.4,5.1248195]
[1728851981646,3.61477,2457.5,2457.4,5.12507397]
[1728851981846,0.40697,2457.5,2457.4,5.12507397]
[1728851982062,3.61477,2457.5,2457.4,4.33447607]
[1728851982245,3.61477,2457.5,2457.4,4.61608914]
[1728851982444,3.61477,2457.5,2457.4,5.12509983]
[1728851984840,0.40697,2457.5,2457.4,5.12509983]
[1728851985053,3.61477,2457.5,2457.4,5.53208983]
[1728851985241,3.61477,2457.5,2457.4,5.12509983]
[1728851985443,3.2078,2457.5,2457.4,5.53208983]
[1728851985644,3.2078,2457.5,2457.4,5.7791319]
[1728851986041,3.61477,2457.5,2457.4,5.53208983]
[1728851986246,3.61477,2457.5,2457.4,5.37772943]
[1728851986448,3.61477,2457.5,2457.4,5.53210012]
[1728851986647,3.61477,2457.5,2457.4,5.40484745]
[1728851986838,3.61477,2457.5,2457.4,5.53210094]
[1728851987249,3.61477,2457.5,2457.4,5.12511094]
[1728851989952,3.61477,2457.5,2457.4,5.12512072]
[1728851990153,0.40697,2457.5,2457.4,5.12512072]
[1728851990456,3.61477,2457.5,2457.4,5.12512072]
[1728851994057,0.40697,2457.5,2457.4,5.12512072]
[1728851995260,3.61477,2457.5,2457.4,5.12512072]
[1728851995962,3.61477,2457.5,2457.4,5.12531963]
[1728851996562,3.61477,2457.5,2457.4,5.37240528]
[1728851996966,3.61477,2457.5,2457.4,5.12531963]
[1728851997168,0.40697,2457.5,2457.4,5.12531963]
[1728851997376,0.40697,2457.5,2457.4,4.97093647]
[1728851997560,0.40697,2457.5,2457.4,4.61633387]
[1728851997765,0.40697,2457.5,2457.4,5.12535334]
[1728851998068,3.61477,2457.5,2457.4,5.1253533]
[1728851998566,0.40697,2457.5,2457.4,5.1253533]
[1728851998868,3.61477,2457.5,2457.4,5.1253533]
[1728851999166,0.40697,2457.5,2457.4,5.1253533]
[1728851999368,3.61477,2457.5,2457.4,5.1253533]
[1728851999561,3.2078,2457.5,2457.4,5.5323433]
[1728852000466,3.2078,2457.5,2457.4,5.53246902]
[1728852002067,3.61477,2457.5,2457.4,4.05258734]
[1728852004064,0.40697,2457.5,2457.4,4.05258734]
[1728852004261,3.61477,2457.5,2457.4,4.05257912]
[1728852004461,3.2078,2457.5,2457.4,4.05257912]
[1728852004671,3.61477,2457.5,2457.4,4.05257912]
[1728852007660,3.2078,2457.5,2457.4,4.05257912]
[1728852007855,3.2078,2457.5,2457.4,4.45956912]
[1728852008063,3.2078,2457.5,2457.4,4.45956168]
[1728852008462,3.2078,2457.5,2457.4,3.66944469]
[1728852008660,3.2078,2457.5,2457.4,4.17844768]
[1728852008862,3.2078,2457.5,2457.4,7.32688466]
[1728852009464,3.2078,2457.5,2457.4,4.99282341]
[1728852009768,3.2078,2457.5,2457.4,7.32689023]
[1728852010766,3.2078,2457.5,2457.4,5.19642291]
[1728852010965,3.2078,2457.5,2457.4,7.32689023]
[1728852012973,3.61476,2457.6,2457.5,0.40697]
[1728852013175,3.61476,2457.6,2457.5,6.31890864]
[1728852013371,0.40696,2457.6,2457.5,6.31890864]
[1728852013670,0.40696,2457.6,2457.5,6.56663624]
[1728852013671,3.61476,2457.6,2457.5,6.56663624]
[1728852014474,3.2078,2457.6,2457.5,6.31885378]
[1728852014772,3.2078,2457.6,2457.5,6.56662887]
[1728852016274,3.61476,2457.6,2457.5,6.31885378]
[1728852016768,3.61476,2457.6,2457.5,6.5666041]
[1728852016973,0.40696,2457.6,2457.5,6.5666041]
[1728852017176,3.2078,2457.6,2457.5,6.31885378]
[1728852017680,3.2078,2457.6,2457.5,6.56659094]
[1728852017967,3.2078,2457.6,2457.5,4.96376791]
[1728852018160,3.61476,2457.6,2457.5,4.96376791]
[1728852018366,3.61476,2457.6,2457.5,4.96346165]
[1728852019472,3.61476,2457.6,2457.5,4.96343199]
[1728852019674,3.61476,2457.6,2457.5,4.83618718]
[1728852019975,0.40696,2457.6,2457.5,4.96343095]
[1728852020178,3.61476,2457.6,2457.5,4.96343095]
[1728852020568,3.61476,2457.6,2457.5,6.56551172]
[1728852021074,3.61476,2457.6,2457.5,6.56551244]
[1728852021574,0.40696,2457.6,2457.5,6.56551244]
[1728852022470,3.61476,2457.6,2457.5,6.56551244]
[1728852022969,3.61476,2457.6,2457.5,6.31777528]
[1728852023174,3.61476,2457.6,2457.5,6.43780793]
[1728852023375,3.61476,2457.6,2457.5,4.96297107]
[1728852024075,3.61476,2457.6,2457.5,6.56484337]
[1728852024378,3.2078,2457.6,2457.5,4.96297107]
[1728852024569,3.2078,2457.6,2457.5,6.56475912]
[1728852025175,3.61476,2457.6,2457.5,6.56478147]
[1728852025574,3.61476,2457.6,2457.5,6.31710894]
[1728852026979,3.61476,2457.6,2457.5,5.68088505]
[1728852027281,3.61476,2457.6,2457.5,6.3171097]
[1728852027978,3.61476,2457.6,2457.5,6.31687828]
[1728852029684,0.40696,2457.6,2457.5,6.31687828]
[1728852030279,3.61476,2457.6,2457.5,6.31687235]
[1728852030685,3.61476,2457.6,2457.5,6.31673682]
[1728852031074,3.61476,2457.6,2457.5,6.31673667]
[1728852031481,4.01876,2457.6,2457.5,6.31673667]
[1728852032680,4.01876,2457.6,2457.5,6.31665086]
[1728852033282,0.81096,2457.6,2457.5,6.31665086]
[1728852033481,4.01876,2457.6,2457.5,5.90968086]
[1728852033678,4.01876,2457.6,2457.5,6.31665086]
[1728852034483,4.01876,2457.6,2457.5,6.31663551]
[1728852035288,0.81096,2457.6,2457.5,6.31663551]
[1728852035688,4.01876,2457.6,2457.5,6.31663551]
[1728852036287,4.01876,2457.6,2457.5,5.80766172]
[1728852036488,4.01876,2457.6,2457.5,6.31664418]
[1728852037184,4.01876,2457.6,2457.5,6.31667105]
[1728852038287,4.01876,2457.6,2457.5,6.31667091]
[1728852038484,4.01876,2457.6,2457.5,6.31669956]
[1728852039586,0.81096,2457.6,2457.5,6.31669956]
[1728852040080,4.01876,2457.6,2457.5,6.31669956]
[1728852040998,0.81096,2457.6,2457.5,6.31669956]
[1728852041491,4.01876,2457.6,2457.5,6.31669956]
[1728852041892,4.01876,2457.6,2457.5,6.18949668]
[1728852042086,4.01876,2457.6,2457.5,6.31673064]
[1728852042489,0.81096,2457.6,2457.5,6.03477085]
[1728852042693,0.81096,2457.6,2457.5,6.31674641]
[1728852043490,0.81096,2457.6,2457.5,6.56437807]
[1728852043688,0.81096,2457.6,2457.5,6.31674641]
[1728852044296,0.81096,2457.6,2457.5,6.56437939]
[1728852045397,0.81096,2457.6,2457.5,6.31674641]
[1728852045711,0.81096,2457.6,2457.5,6.56439227]
[1728852045902,0.81096,2457.6,2457.5,6.56440686]
[1728852046097,0.4039,2457.7,2457.6,0.40695]
[1728852046098,0.40696,2457.7,2457.6,0.40695]
[1728852046291,0.40696,2457.7,2457.6,4.60709401]
[1728852046693,0.40696,2457.7,2457.6,5.92709401]
[1728852049605,0.40696,2457.7,2457.6,5.41819887]
[1728852049797,3.2078,2457.8,2457.6,5.92715882]
[1728852050001,3.61474,2457.8,2457.7,1.22280888]
[1728852050206,3.61474,2457.8,2457.7,1.62974888]
[1728852050407,3.2078,2457.8,2457.7,4.46351936]
[1728852050607,3.61472,2457.8,2457.7,3.95457219]
[1728852050807,3.61472,2457.8,2457.7,4.36151219]
[1728852051210,3.61472,2457.8,2457.7,4.87046172]
[1728852051501,3.61472,2457.8,2457.7,4.46359252]
[1728852051707,3.61472,2457.8,2457.7,3.95464299]
[1728852052306,3.61472,2457.8,2457.7,4.46359736]
[1728852052505,0.40692,2457.8,2457.7,3.95464299]
[1728852053224,0.40692,2457.8,2457.7,4.30877308]
[1728852053507,0.40692,2457.8,2457.7,3.77981739]
[1728852053710,0.40692,2457.8,2457.7,3.27086291]
[1728852053902,0.82462,2457.8,2457.7,1.22283573]
[1728852054105,0.82462,2457.8,2457.7,3.14378889]
[1728852054106,2.14462,2457.8,2457.7,3.14378889]
[1728852054408,2.14462,2457.8,2457.7,1.22283573]
[1728852056209,5.35242,2457.8,2457.7,1.22283573]
[1728852056403,5.35242,2457.8,2457.7,2.63503172]
[1728852056603,5.35242,2457.8,2457.7,1.22283573]
[1728852056800,15.0143,2457.8,2457.5,1.06798449]
[1728852057022,0.40697,2457.5,2457.4,1.06798449]
[1728852057210,4.93477,2457.5,2457.4,1.35012663]
[1728852057413,5.73757,2457.5,2457.4,1.22286778]
[1728852058616,5.73757,2457.5,2457.4,1.06798449]
[1728852058815,5.73757,2457.5,2457.4,1.2228225]
[1728852059021,5.73757,2457.5,2457.4,1.22282371]
[1728852059313,5.73757,2457.5,2457.4,1.06798449]
[1728852059716,5.73757,2457.5,2457.4,2.38798449]
[1728852059919,5.34077,2457.5,2457.4,2.54278565]
[1728852061318,5.34077,2457.5,2457.4,2.38798449]
[1728852065426,4.9338,2457.5,2457.3,2.38798449]
[1728852065627,0.40699,2457.4,2457.3,2.38798449]
[1728852065823,0.40699,2457.4,2457.3,5.12405508]
[1728852066431,0.40699,2457.4,2457.3,3.52219167]
[1728852067022,0.40699,2457.4,2457.3,5.12405508]
[1728852067528,1.72699,2457.4,2457.3,1.22221241]
[1728852067926,14.86280196,2457.4,2457.1,1.06746224]
[1728852068224,4.5278,2457.2,2456.9,1.06746224]
[1728852068437,1.32,2457.0,2456.8,2.79436224]
[1728852068729,4.93487,2456.9,2456.8,1.06746224]
[1728852068937,5.3408,2456.9,2456.7,1.06746224]
[1728852069230,0.40711,2456.7,2456.6,2.38746224]
[1728852069427,0.40711,2456.7,2456.6,1.32]
[1728852069632,0.80761,2456.7,2456.6,1.32]
[1728852073727,1.32,2456.8,2456.6,1.32]
[1728852074035,0.40709,2456.8,2456.7,1.32]
[1728852074336,1.72709,2456.8,2456.7,1.32]
[1728852077543,1.72709,2456.8,2456.7,1.7115]
[1728852078037,1.32,2456.8,2456.7,1.7115]
[1728852078242,4.9386,2456.9,2456.7,1.7115]
[1728852078439,0.40709,2456.8,2456.7,1.7115]
[1728852078846,4.9386,2456.9,2456.7,1.7115]
[1728852079236,5.34567,2456.9,2456.8,0.4045]
[1728852088551,0.40709,2456.8,2456.7,0.7912]
[1728852088749,1.72709,2456.8,2456.7,0.7912]
[1728852104065,1.72709,2456.8,2456.7,1.2063]
[1728852112576,1.72709,2456.8,2456.7,2.27376224]
[1728852113366,1.72709,2456.8,2456.7,3.06512854]
[1728852113567,1.72709,2456.8,2456.7,5.01208848]
[1728852116371,1.72709,2456.8,2456.7,5.01228501]
[1728852116968,1.72709,2456.8,2456.7,3.4104216]
[1728852118870,1.72709,2456.8,2456.7,3.41043724]
[1728852120367,4.93489,2456.8,2456.7,3.41043724]
[1728852120568,1.72709,2456.8,2456.7,3.41054087]
[1728852120768,4.93489,2456.8,2456.7,3.41054087]
[1728852122273,4.93489,2456.8,2456.7,5.01240428]
[1728852122574,4.93489,2456.8,2456.7,3.41054087]
[1728852123177,1.72709,2456.8,2456.7,3.41054087]
[1728852123474,4.93489,2456.8,2456.7,5.01240428]
[1728852123880,4.93489,2456.8,2456.7,3.41054087]
[1728852124178,4.93489,2456.8,2456.7,4.47943897]
[1728852124483,4.93489,2456.8,2456.7,3.41048317]
[1728852124779,4.93489,2456.8,2456.7,2.93927374]
[1728852124974,4.93489,2456.8,2456.7,2.63662898]
[1728852125170,11.67070196,2456.8,2456.6,1.06888452]
[1728852125371,0.40712,2456.6,2456.5,1.06888452]
[1728852125575,0.40712,2456.6,2456.3,2.07586341]
[1728852125576,0.40714,2456.5,2456.4,1.06888452]
[1728852125778,5.35524,2456.5,2456.4,1.22383097]
[1728852126276,9.42644,2456.5,2456.4,0.15494645]
[1728852126578,0.40716,2456.4,2456.3,1.06888452]
[1728852126879,1.72716,2456.4,2456.3,1.06888452]
[1728852127373,0.40717,2456.3,2456.2,2.27968452]
[1728852127582,1.72717,2456.3,2456.2,3.84624719]
[1728852128077,1.32,2456.3,2456.2,3.84624719]
[1728852128274,1.32,2456.3,2456.2,4.37922608]
[1728852128585,1.32,2456.3,2456.2,4.88847499]
[1728852128883,1.72717,2456.3,2456.2,3.84529751]
[1728852129076,1.72717,2456.3,2456.2,2.43355901]
[1728852129277,3.2078,2456.5,2456.2,7.82472797]
[1728852129583,4.93494,2456.5,2456.4,1.32]
[1728852129772,1.32,2456.4,2456.3,2.79510484]
[1728852130369,1.32,2456.4,2456.3,1.72717]
[1728852130884,1.32,2456.4,2456.3,5.79837]
[1728852131783,1.32,2456.4,2456.3,6.86630484]
[1728852132378,1.32,2456.4,2456.3,5.79837]
[1728852134976,1.32,2456.4,2456.3,1.72717]
[1728852139580,1.32,2456.5,2456.4,1.72715]
[1728852139788,1.32,2456.5,2456.4,2.79508484]
[1728852140181,1.32,2456.5,2456.4,1.72715]
[1728852140487,1.32,2456.5,2456.4,2.79508484]
[1728852144089,4.5278,2456.6,2456.4,6.45913484]
[1728852144297,4.93492,2456.6,2456.5,0.4071]
[1728852144489,4.93492,2456.6,2456.5,0.7958]
[1728852145492,1.32,2456.6,2456.5,0.7958]
[1728852145793,1.72712,2456.6,2456.5,1.20294]
[1728852145994,1.72712,2456.6,2456.5,1.60694]
[1728852146695,1.32,2456.6,2456.5,1.60694]
[1728852153903,1.32,2456.6,2456.5,2.67487484]
[1728852156595,1.32,2456.6,2456.5,2.26773484]
[1728852156596,1.72712,2456.6,2456.5,2.26773484]
[1728852157001,1.32,2456.6,2456.5,2.26773484]
[1728852157208,1.32,2456.6,2456.5,2.67487484]
[1728852157600,1.32,2456.6,2456.5,2.8296305]
[1728852159113,2.66675419,2457.0,2456.6,4.0704]
[1728852159305,0.095,2457.5,2456.9,6.66122413]
[1728852159506,2.1106,2457.6,2457.4,1.32]
[1728852159704,2.1106,2457.6,2457.4,1.72699]
[1728852160013,0.7906,2457.6,2457.4,2.79367538]
[1728852160406,0.7906,2457.6,2457.4,1.72699]
[1728852160912,0.7906,2457.6,2457.5,1.32]
[1728852161810,0.7906,2457.6,2457.5,1.72697]
[1728852163107,0.7906,2457.6,2457.5,1.32]
[1728852163310,2.1106,2457.6,2457.3,2.1631]
[1728852163511,2.1106,2457.6,2457.4,0.40698]
[1728852164303,2.1106,2457.6,2457.3,2.1631]
[1728852164513,2.1106,2457.6,2457.5,0.40697]
[1728852167013,0.7906,2457.6,2457.5,0.40697]
[1728852168210,0.7906,2457.6,2457.5,1.72697]
[1728852168909,1.32,2457.8,2457.7,0.40694]
[1728852169110,1.7424,2457.8,2457.7,0.40694]
[1728852169702,0.4224,2457.8,2457.7,0.40694]
[1728852171209,1.7424,2457.8,2457.7,0.40694]
[1728852174331,0.4224,2457.8,2457.7,1.72694]
[1728852175013,6.07955419,2458.7,2457.8,4.47572]
[1728852175215,0.9159,2458.7,2458.4,1.32]
[1728852175516,2.1409,2458.7,2458.4,1.32]
[1728852175719,2.54768,2458.7,2458.4,1.72681]
[1728852175914,0.8209,2458.7,2458.6,1.72679]
[1728852179816,0.8209,2458.7,2458.6,1.32]
[1728852182724,0.8209,2458.7,2458.6,1.72679]
[1728852183030,0.8209,2458.7,2458.6,1.32]
[1728852183334,0.8209,2458.7,2458.6,1.72679]
[1728852183820,0.8209,2458.7,2458.6,1.32]
[1728852185230,0.40681,2458.5,2458.4,3.2078]
[1728852185926,1.72681,2458.5,2458.4,3.2078]
[1728852187025,1.72681,2458.5,2458.4,4.5278]
[1728852188624,1.72681,2458.5,2458.4,1.32]
[1728852189025,0.40681,2458.5,2458.4,4.5278]
[1728852190029,0.40681,2458.5,2458.4,4.93462]
[1728852190430,0.40681,2458.5,2458.4,1.72682]
[1728852192124,0.40681,2458.5,2458.4,1.32]
[1728852192715,0.40681,2458.5,2458.4,1.72682]
[1728852194627,0.40681,2458.5,2458.4,1.32]
[1728852195222,3.15786,2458.7,2458.3,0.40683]
[1728852195420,0.81722,2458.4,2458.3,0.40683]
[1728852197924,0.4104,2458.4,2458.3,0.40683]
[1728852201033,0.81722,2458.4,2458.3,0.40683]
[1728852202135,0.4104,2458.4,2458.3,0.40683]
[1728852202333,0.4104,2458.4,2458.3,1.72683]
[1728852203631,0.4104,2458.4,2458.3,4.93463]
[1728852207738,0.8111,2458.4,2458.3,4.93463]
[1728852208329,0.8111,2458.4,2458.3,3.61463]
[1728852209639,12.1991,2458.4,2458.1,1.06668538]
[1728852209835,12.1991,2458.4,2457.3,1.47368538]
[1728852209836,0.40697,2457.6,2457.3,1.47368538]
[1728852210031,0.40699,2457.4,2457.2,2.06738538]
[1728852210231,1.32,2457.5,2457.2,0.6123]
[1728852210232,1.72698,2457.5,2457.2,0.6123]
[1728852210837,1.72699,2457.5,2457.2,0.6123]
[1728852211231,1.72699,2457.5,2457.2,1.9323]
[1728852211436,1.32,2457.4,2457.2,1.9323]
[1728852212544,1.72695,2457.7,2457.3,1.32]
[1728852212743,0.40695,2457.7,2457.6,1.32]
[1728852213238,1.72695,2457.7,2457.5,1.32]
[1728852213742,1.32,2457.7,2457.5,1.32]
[1728852214034,1.72694,2457.7,2457.5,1.32]
[1728852217048,0.40696,2457.6,2457.5,1.32]
[1728852217739,0.40702,2457.2,2457.1,0.095]
[1728852217943,0.4071,2456.8,2456.6,1.16168538]
[1728852218239,0.4071,2456.8,2456.5,2.80248538]
[1728852218240,1.32,2456.7,2456.5,2.80248538]
[1728852218547,1.72711,2456.7,2456.6,1.32]
[1728852219948,0.40712,2456.6,2456.5,0.4158]
[1728852220149,1.01767,2457.0,2456.5,0.4158]
[1728852220449,0.40712,2456.7,2456.5,0.4158]
[1728852220840,0.40712,2456.6,2456.5,0.4158]
[1728852221036,0.40712,2456.7,2456.5,0.4158]
[1728852221245,3.6536,2457.1,2456.5,0.4158]
[1728852221440,0.40712,2456.6,2456.5,0.4158]
[1728852221839,0.40712,2456.6,2456.5,4.4862]
[1728852223043,0.40712,2456.7,2456.5,4.4862]
[1728852223244,0.40712,2456.7,2456.5,0.4158]
[1728852223546,0.40712,2456.6,2456.5,0.4158]
[1728852223947,0.40712,2456.6,2456.5,4.4862]
[1728852224854,0.40712,2456.6,2456.5,0.4158]
[1728852231970,2.86,2456.6,2456.3,3.2078]
[1728852232281,0.40716,2456.4,2456.3,3.2078]
[1728852232876,0.40721,2456.1,2456.0,0.4185]
[1728852233373,0.40722,2456.0,2455.9,0.3891]
[1728852236373,0.40722,2456.0,2455.9,0.79634]
[1728852236574,0.40722,2456.0,2455.9,0.3891]
[1728852238479,0.40722,2456.0,2455.9,0.79634]
[1728852238880,0.40722,2456.0,2455.9,0.3891]
[1728852240284,0.40726,2455.8,2455.7,3.2078]
[1728852240482,0.40729,2455.6,2455.5,0.4057]
[1728852242487,0.40732,2455.4,2455.3,3.2078]
[1728852244288,0.40732,2455.4,2455.2,4.00035]
[1728852244884,0.4127,2455.5,2455.2,4.00035]
[1728852245080,0.40734,2455.3,2455.2,4.00035]
[1728852245888,0.40733,2455.4,2455.3,0.40733]
[1728852247192,0.40731,2455.5,2455.4,0.40732]
[1728852255593,0.40729,2455.6,2455.5,0.40729]
[1728852255794,0.40729,2455.6,2455.5,1.72729]
[1728852255985,1.72729,2455.6,2455.5,1.72729]
[1728852256391,1.72729,2455.6,2455.5,0.40729]
[1728852261394,1.72729,2455.6,2455.5,0.80829]
[1728852263503,0.40729,2455.6,2455.5,0.80829]
[1728852263700,1.32,2455.8,2455.5,0.80829]
[1728852264302,1.32,2455.8,2455.6,0.40728]
[1728852264601,1.32,2455.8,2455.6,0.81648]
[1728852265107,1.32,2455.8,2455.6,0.4092]
[1728852265600,1.32,2455.7,2455.6,0.4092]
[1728852269001,1.32,2455.7,2455.6,0.81649]
[1728852269395,1.32,2455.7,2455.6,0.4092]
[1728852270000,1.32,2455.8,2455.6,0.4092]
[1728852271304,1.1927,2455.9,2455.6,0.4092]
[1728852271509,2.5127,2455.9,2455.6,0.81649]
[1728852272006,1.32,2455.8,2455.6,0.4092]
[1728852272400,1.32,2455.8,2455.6,0.81649]
[1728852272606,1.32,2455.8,2455.6,0.4092]
[1728852274606,1.1927,2455.9,2455.8,0.40726]
[1728852274607,0.3895,2455.9,2455.8,0.40726]
[1728852274808,0.3895,2455.9,2455.8,4.47926]
[1728852275016,1.7095,2455.9,2455.7,1.47395538]
[1728852275311,1.7095,2455.9,2455.7,1.47394538]
[1728852276311,1.7095,2455.9,2455.8,0.40726]
[1728852276705,1.7095,2455.9,2455.8,4.47926]
[1728852277117,1.7095,2455.9,2455.8,0.40726]
[1728852277313,1.7095,2455.9,2455.8,4.072]
[1728852277618,1.7095,2455.9,2455.8,1.06668538]
[1728852278409,1.7095,2455.9,2455.8,3.02761972]
[1728852278613,1.7095,2455.9,2455.8,3.02761351]
[1728852279708,0.3895,2455.9,2455.8,3.02761351]
[1728852279915,0.3895,2455.9,2455.8,1.96092813]
[1728852280213,0.3895,2455.9,2455.8,1.96097878]
[1728852280402,0.3895,2455.9,2455.8,4.07092978]
[1728852281012,0.3895,2455.9,2455.8,5.39092978]
[1728852281612,0.3895,2455.9,2455.8,5.10852333]
[1728852281816,0.3895,2455.9,2455.8,5.39094413]
[1728852282513,0.3895,2455.9,2455.8,5.90023789]
[1728852284213,0.3895,2455.9,2455.8,5.39094413]
[1728852284410,0.3895,2455.9,2455.8,5.90023556]
[1728852284914,0.3895,2455.9,2455.8,5.90077609]
[1728852286013,0.3895,2455.9,2455.8,5.90077516]
[1728852286521,0.3895,2455.9,2455.8,6.31527516]
[1728852286908,0.79674,2455.9,2455.8,4.58801516]
[1728852287609,0.79674,2455.9,2455.8,4.99527516]
[1728852289321,0.79674,2455.9,2455.8,4.84017764]
[1728852289523,0.79674,2455.9,2455.8,4.48600781]
[1728852289816,0.79674,2455.9,2455.8,4.99520145]
[1728852290217,0.79674,2455.9,2455.8,4.99520196]
[1728852291407,0.79674,2455.9,2455.8,4.48590281]
[1728852291611,0.79674,2455.9,2455.8,4.99519898]
[1728852293016,0.79674,2455.9,2455.8,4.35858046]
[1728852293222,0.79674,2455.9,2455.8,4.99519942]
[1728852294424,0.79674,2455.9,2455.8,4.99520587]
[1728852296918,0.79674,2455.9,2455.8,4.71276048]
[1728852297120,0.79674,2455.9,2455.8,4.99521327]
[1728852299122,0.79674,2455.9,2455.8,4.99529582]
[1728852299520,2.11674,2455.9,2455.8,3.28163667]
[1728852299719,2.11674,2455.9,2455.8,2.621433]
[1728852299925,2.11674,2455.9,2455.8,1.22227321]
[1728852300230,2.11674,2455.9,2455.8,2.62154866]
[1728852300628,6.18874,2455.9,2455.8,2.46643727]
[1728852300924,6.18874,2455.9,2455.7,1.60002807]
[1728852300925,0.40726,2455.8,2455.7,1.06714918]
[1728852301118,2.50236,2455.8,2455.7,1.22233191]
[1728852301316,6.1671,2455.8,2455.5,1.06714918]
[1728852301526,1.72729,2455.6,2455.5,1.06714918]
[1728852302323,0.40731,2455.5,2455.4,4.27494918]
[1728852302524,2.14981,2455.5,2455.4,4.76240718]
[1728852302723,0.82981,2455.5,2455.4,6.08240718]
[1728852302919,0.82981,2455.5,2455.4,8.58248565]
[1728852303332,0.82981,2455.5,2455.4,9.09188512]
[1728852303529,0.82981,2455.5,2455.4,9.49920452]
[1728852303828,0.82981,2455.5,2455.4,9.09188452]
[1728852304823,0.82981,2455.5,2455.4,8.58248505]
[1728852306636,0.82981,2455.5,2455.4,8.98980505]
[1728852307021,0.82981,2455.5,2455.4,8.98975817]
[1728852307225,0.82981,2455.5,2455.4,8.86240837]
[1728852307432,0.82981,2455.5,2455.4,8.98975864]
[1728852307640,0.82981,2455.5,2455.4,8.58243865]
[1728852309529,0.82981,2455.5,2455.4,8.98975865]
[1728852311921,0.82981,2455.5,2455.4,9.49905903]
[1728852312627,0.82981,2455.5,2455.4,9.49906373]
[1728852312827,0.82981,2455.5,2455.4,8.9896802]
[1728852313124,0.82981,2455.5,2455.4,5.7818802]
[1728852314332,0.82981,2455.5,2455.4,5.78187937]
[1728852314725,0.82981,2455.5,2455.4,4.46187937]
[1728852314929,0.82981,2455.5,2455.4,4.33452992]
[1728852315133,0.82981,2455.5,2455.4,4.46187975]
[1728852316224,0.82981,2455.5,2455.4,4.33452992]
[1728852316632,0.82981,2455.5,2455.4,4.33439569]
[1728852316933,0.82981,2455.5,2455.4,4.46174579]
[1728852317330,2.14981,2455.5,2455.4,4.33439569]
[1728852318228,2.14981,2455.5,2455.4,2.73436762]
[1728852319038,2.14981,2455.5,2455.4,3.80144407]
[1728852319237,2.14981,2455.5,2455.4,3.80140212]